bitfinex/quotes_BTCUSD_20241018
["timestamp","ask_amount","ask_price","bid_price","bid_amount"]
[1729262472101,0.21904685,68461.0,68459.0,0.04274043]
[1729262472333,0.001656,68465.0,68459.0,0.00218977]
[1729262473034,0.00505513,68462.0,68459.0,0.00218977]
[1729262473513,0.001656,68465.0,68459.0,0.00218977]
[1729262473745,0.21904685,68462.0,68459.0,0.00218977]
[1729262473976,0.00502963,68462.0,68459.0,0.00218977]
[1729262474419,0.001498,68463.0,68459.0,0.00218977]
[1729262474629,0.001498,68463.0,68460.0,0.0193274]
[1729262474630,0.00503508,68461.0,68460.0,0.0193274]
[1729262474866,0.001261,68463.0,68461.0,0.1]
[1729262475556,0.00501806,68462.0,68461.0,0.1]
[1729262476017,0.00501806,68462.0,68459.0,0.01137705]
[1729262476018,0.001656,68465.0,68462.0,0.00192]
[1729262476260,0.21914685,68476.0,68465.0,0.00192]
[1729262476486,0.21914685,68476.0,68464.0,0.1]
[1729262476487,0.21914685,68476.0,68466.0,0.04258616]
[1729262476707,0.00510471,68471.0,68464.0,0.16409487]
[1729262476924,0.00510471,68471.0,68464.0,0.1]
[1729262477172,0.21914685,68476.0,68464.0,0.1]
[1729262477173,0.21914685,68476.0,68464.0,0.16409487]
[1729262477409,0.21914685,68476.0,68461.0,0.16409487]
[1729262477639,0.21914685,68476.0,68463.0,0.1]
[1729262478099,0.21914685,68476.0,68463.0,0.1023987]
[1729262478100,0.21904685,68475.0,68463.0,0.1023987]
[1729262478325,0.21904685,68475.0,68464.0,0.0047974]
[1729262478575,0.00509435,68471.0,68464.0,0.0047974]
[1729262478786,0.00509435,68471.0,68461.0,0.06409487]
[1729262479006,0.00509435,68471.0,68459.0,0.01137705]
[1729262479432,0.21904685,68468.0,68459.0,0.01137705]
[1729262479664,0.14895915,68470.0,68459.0,0.01137705]
[1729262479892,0.15401054,68467.0,68459.0,0.01137705]
[1729262480127,0.1859,68466.0,68459.0,0.01137705]
[1729262480361,0.14895915,68465.0,68459.0,0.01137705]
[1729262480818,0.00503873,68464.0,68459.0,0.01137705]
[1729262481087,0.14895915,68463.0,68459.0,0.01137705]
[1729262481335,0.00503483,68463.0,68460.0,0.00047304]
[1729262481561,0.21904685,68475.0,68460.0,0.00047304]
[1729262481792,0.00457413,68462.0,68460.0,0.00047304]
[1729262482028,0.21904685,68475.0,68460.0,0.10047304]
[1729262482261,0.00457413,68461.0,68460.0,0.10047304]
[1729262482513,0.001756,68472.0,68460.0,0.10047304]
[1729262482737,0.21904685,68468.0,68460.0,0.10047304]
[1729262482931,0.21904685,68468.0,68460.0,0.00047304]
[1729262483185,0.001756,68472.0,68460.0,0.00047304]
[1729262483430,0.00420292,68467.0,68460.0,0.10212704]
[1729262483725,0.001756,68472.0,68462.0,0.16409487]
[1729262483726,0.000827,68465.0,68462.0,0.16409487]
[1729262483953,0.000827,68465.0,68464.0,0.1]
[1729262484176,0.000827,68465.0,68464.0,0.16409487]
[1729262484399,0.000827,68465.0,68464.0,0.10239304]
[1729262484631,0.000827,68465.0,68464.0,0.10047304]
[1729262484869,0.000827,68465.0,68464.0,0.16456791]
[1729262485060,0.000827,68465.0,68464.0,0.10047304]
[1729262485547,0.000827,68465.0,68464.0,0.1]
[1729262486217,0.000827,68465.0,68461.0,0.06403244]
[1729262486456,0.000827,68465.0,68462.0,0.042717]
[1729262486689,0.000827,68465.0,68460.0,0.001654]
[1729262486930,0.000827,68465.0,68462.0,0.04345634]
[1729262487146,0.000827,68465.0,68464.0,0.042717]
[1729262487366,0.000827,68465.0,68464.0,0.041717]
[1729262487576,0.000827,68465.0,68464.0,0.06551112]
[1729262488654,0.000827,68465.0,68464.0,0.18979335]
[1729262488878,0.000927,68465.0,68464.0,0.18979335]
[1729262489321,0.000927,68465.0,68464.0,0.18693851]
[1729262489542,0.000927,68465.0,68464.0,0.10147868]
[1729262489759,0.000927,68465.0,68464.0,0.00147868]
[1729262491599,0.000927,68465.0,68464.0,0.22966842]
[1729262492682,0.000927,68465.0,68464.0,0.05987168]
[1729262492903,0.000927,68465.0,68464.0,0.18710067]
[1729262493131,0.000927,68465.0,68464.0,0.1]
[1729262493554,0.000927,68465.0,68462.0,0.058396]
[1729262493946,0.000927,68465.0,68460.0,0.001654]
[1729262493970,0.00416422,68464.0,68460.0,0.001654]
[1729262494740,0.00416422,68464.0,68462.0,0.1]
[1729262494961,0.00416422,68464.0,68462.0,0.22870767]
[1729262495174,0.00416422,68464.0,68463.0,0.23089755]
[1729262495384,0.000927,68465.0,68464.0,0.1]
[1729262495822,0.00510414,68465.0,68464.0,0.1]
[1729262496033,0.000927,68465.0,68464.0,0.1]
[1729262496250,0.00510414,68465.0,68464.0,0.1]
[1729262496433,0.000927,68465.0,68464.0,0.1]
[1729262496911,0.00509366,68465.0,68464.0,0.1]
[1729262497151,0.000927,68465.0,68464.0,0.1]
[1729262497365,0.15405281,68465.0,68463.0,0.10218988]
[1729262497602,0.15405281,68465.0,68464.0,0.1]
[1729262497603,0.000927,68465.0,68464.0,0.1]
[1729262497844,0.000927,68465.0,68464.0,0.08593146]
[1729262498082,0.000927,68465.0,68463.0,0.00218988]
[1729262499235,0.14895915,68464.0,68463.0,0.04515944]
[1729262499464,0.000927,68465.0,68463.0,0.04515944]
[1729262499465,0.000927,68465.0,68464.0,0.0171192]
[1729262499699,0.000927,68465.0,68463.0,0.23089755]
[1729262499924,0.000927,68465.0,68463.0,0.10218988]
[1729262500373,0.000927,68465.0,68463.0,0.23089755]
[1729262500586,0.000927,68465.0,68463.0,0.10218988]
[1729262501011,0.000927,68465.0,68463.0,0.00218988]
[1729262501508,0.000927,68465.0,68464.0,0.1]
[1729262502900,0.000927,68465.0,68463.0,0.00218988]
[1729262504274,0.000927,68465.0,68463.0,0.10218988]
[1729262504718,0.000927,68465.0,68463.0,0.29147005]
[1729262504956,0.000927,68465.0,68463.0,0.10218988]
[1729262505405,0.001756,68472.0,68465.0,0.1]
[1729262505692,0.21904685,68475.0,68467.0,0.10192]
[1729262505900,0.21904685,68475.0,68471.0,0.24421346]
[1729262506121,0.21904685,68475.0,68471.0,1.1947442]
[1729262506334,0.0001,68476.0,68471.0,0.1]
[1729262507015,0.0001,68476.0,68468.0,0.24421346]
[1729262507463,0.000828,68472.0,68469.0,0.14421346]
[1729262507694,0.000828,68472.0,68470.0,0.00218966]
[1729262508416,0.000828,68472.0,68471.0,0.19048352]
[1729262508622,0.000828,68472.0,68470.0,0.00218966]
[1729262508623,0.023,68471.0,68470.0,0.00218966]
[1729262509375,0.000828,68472.0,68470.0,0.00218966]
[1729262509608,0.000828,68472.0,68471.0,0.10762293]
[1729262510771,0.023,68471.0,68470.0,0.08831429]
[1729262511004,0.17195915,68471.0,68470.0,0.08831429]
[1729262511237,0.17195915,68471.0,68470.0,0.00218966]
[1729262514231,0.17205915,68471.0,68470.0,0.00218966]
[1729262514483,0.17205915,68471.0,68470.0,0.13145133]
[1729262514735,0.14905915,68471.0,68470.0,0.20152421]
[1729262514944,0.14905915,68471.0,68470.0,0.1192056]
[1729262514945,0.0001,68471.0,68470.0,0.1192056]
[1729262516097,0.0001,68471.0,68470.0,0.0192056]
[1729262516331,0.00017558,68472.0,68471.0,0.1]
[1729262517511,0.00017558,68472.0,68470.0,0.00218966]
[1729262519904,0.00027558,68472.0,68470.0,0.00218966]
[1729262521091,0.00027558,68472.0,68471.0,0.24541904]
[1729262521327,0.00027558,68472.0,68471.0,0.1]
[1729262521778,0.00027558,68472.0,68471.0,0.24541189]
[1729262522027,0.00027558,68472.0,68471.0,5.29541189]
[1729262522279,0.00027558,68472.0,68471.0,5.15]
[1729262522510,0.00027558,68472.0,68471.0,4.84184]
[1729262522954,0.00027558,68472.0,68471.0,4.830623]
[1729262523873,0.00027558,68472.0,68471.0,4.860623]
[1729262524085,0.00027558,68472.0,68471.0,2.234667]
[1729262524571,0.00027558,68472.0,68471.0,1.732724]
[1729262524835,0.00027558,68472.0,68471.0,1.73929476]
[1729262525704,0.00027558,68472.0,68471.0,1.41707]
[1729262525941,0.00027558,68472.0,68471.0,1.38707]
[1729262527540,0.00027558,68472.0,68471.0,0.358915]
[1729262527782,0.14923473,68472.0,68470.0,0.00218966]
[1729262527996,0.14895915,68471.0,68470.0,0.00218966]
[1729262528493,0.14895915,68471.0,68470.0,0.19333447]
[1729262528736,0.14895915,68471.0,68470.0,0.00218966]
[1729262529426,0.37025915,68471.0,68470.0,0.00218966]
[1729262529719,0.37225915,68471.0,68470.0,0.13165854]
[1729262529960,0.45365915,68471.0,68470.0,0.00218966]
[1729262530431,0.45365915,68471.0,68470.0,0.04701339]
[1729262531620,0.025,68468.0,68467.0,0.03974633]
[1729262531872,0.025,68468.0,68464.0,0.001656]
[1729262531873,0.023,68465.0,68464.0,0.001656]
[1729262532114,0.14895915,68465.0,68464.0,0.08913452]
[1729262532352,0.14895915,68465.0,68464.0,0.00392248]
[1729262532607,0.14895915,68465.0,68464.0,0.78027548]
[1729262532849,0.14895915,68465.0,68464.0,1.87222488]
[1729262533110,0.00027558,68472.0,68465.0,0.1]
[1729262533375,0.00027558,68472.0,68467.0,0.1]
[1729262533589,0.21904685,68471.0,68470.0,0.1]
[1729262533825,0.00027558,68472.0,68471.0,0.562835]
[1729262534058,0.14923473,68472.0,68471.0,0.521222]
[1729262534284,0.14923473,68472.0,68471.0,0.306212]
[1729262534510,0.14923473,68472.0,68471.0,0.206212]
[1729262534951,0.2657,68471.0,68467.0,0.1293682]
[1729262534957,0.2657,68471.0,68464.0,0.01283545]
[1729262534958,0.2657,68471.0,68465.0,0.1293682]
[1729262535172,0.41465915,68471.0,68466.0,0.31904685]
[1729262535406,0.41465915,68471.0,68466.0,0.2312882]
[1729262535640,0.41465915,68471.0,68466.0,0.1]
[1729262536393,0.41465915,68471.0,68465.0,0.1]
[1729262536619,0.41465915,68471.0,68465.0,0.2293682]
[1729262536852,0.41465915,68471.0,68466.0,0.002]
[1729262537303,0.41465915,68471.0,68467.0,0.1293682]
[1729262537539,0.41465915,68471.0,68466.0,0.002]
[1729262537540,0.023,68470.0,68466.0,0.002]
[1729262537750,0.14895915,68469.0,68466.0,0.002]
[1729262537964,0.023,68468.0,68466.0,0.001]
[1729262538194,0.023,68468.0,68467.0,0.10783262]
[1729262538404,0.023,68470.0,68466.0,0.10883752]
[1729262538619,0.17195915,68467.0,68466.0,0.10783752]
[1729262538859,0.17195915,68467.0,68466.0,0.11083752]
[1729262539553,0.17195915,68467.0,68466.0,0.002]
[1729262539554,0.14895915,68467.0,68466.0,0.002]
[1729262539812,0.14895915,68467.0,68466.0,0.10552908]
[1729262540056,0.14895915,68467.0,68466.0,0.10744908]
[1729262540292,0.0001,68467.0,68466.0,0.10744908]
[1729262540716,0.0001,68467.0,68466.0,2.45190982]
[1729262541209,0.0001,68467.0,68466.0,2.28246382]
[1729262541462,0.0001,68467.0,68466.0,0.27048982]
[1729262541667,0.0001,68467.0,68466.0,0.27248982]
[1729262541902,0.0001,68467.0,68466.0,0.27148982]
[1729262542110,0.0001,68467.0,68466.0,0.51148982]
[1729262542111,1e-06,68467.0,68466.0,0.51148982]
[1729262542321,1e-06,68467.0,68466.0,0.51314382]
[1729262542785,1e-06,68467.0,68466.0,0.51414382]
[1729262544575,1e-06,68467.0,68466.0,0.00876382]
[1729262545226,0.00045,68471.0,68470.0,0.00192]
[1729262545471,8.58e-06,68472.0,68471.0,0.10192]
[1729262545905,8.58e-06,68472.0,68471.0,0.1]
[1729262546120,0.14896773,68472.0,68470.0,0.24]
[1729262546354,0.14895915,68471.0,68470.0,0.24]
[1729262547256,8.58e-06,68472.0,68471.0,0.10192]
[1729262547481,8.58e-06,68472.0,68471.0,1.659598]
[1729262547754,8.58e-06,68472.0,68471.0,1.58114246]
[1729262547993,8.58e-06,68472.0,68471.0,1.32435246]
[1729262548196,8.58e-06,68472.0,68471.0,1.321691]
[1729262548630,8.58e-06,68472.0,68471.0,1.179982]
[1729262549118,0.00010858,68472.0,68471.0,1.180982]
[1729262549337,2.858e-05,68472.0,68471.0,2.41973155]
[1729262549979,2.858e-05,68472.0,68471.0,1.34166955]
[1729262550218,0.21904685,68483.0,68472.0,0.1391]
[1729262550468,0.19423672,68483.0,68473.0,5.05]
[1729262550674,0.18742772,68483.0,68473.0,5.05266146]
[1729262550878,0.18742772,68483.0,68474.0,5.05]
[1729262551313,0.000828,68484.0,68475.0,0.1]
[1729262551606,0.000828,68484.0,68477.0,0.1]
[1729262551768,0.000828,68484.0,68478.0,5.05]
[1729262552187,0.21904685,68490.0,68479.0,0.1]
[1729262552438,0.21904685,68490.0,68481.0,0.1]
[1729262552652,0.21904685,68490.0,68483.0,0.1]
[1729262552875,0.21904685,68490.0,68487.0,0.00218893]
[1729262553096,0.0001,68492.0,68489.0,0.1]
[1729262553337,0.0001,68492.0,68491.0,0.1]
[1729262553552,0.0001,68492.0,68491.0,1.50458]
[1729262553764,0.0001,68492.0,68491.0,2.467094]
[1729262553992,0.0001,68492.0,68491.0,0.1]
[1729262554462,0.0001,68492.0,68491.0,0.095]
[1729262554679,0.0001,68492.0,68491.0,1.301259]
[1729262554891,0.0001,68492.0,68491.0,1.300259]
[1729262555375,4.31851017,68507.0,68491.0,1.301259]
[1729262555665,0.21904685,68499.0,68492.0,5.06515256]
[1729262555858,4.31851017,68507.0,68493.0,3.9115]
[1729262556426,4.31851017,68507.0,68494.0,0.01787998]
[1729262556664,4.31851017,68507.0,68498.0,0.1]
[1729262556838,0.21904685,68506.0,68499.0,5.15]
[1729262557032,9.007829,68500.0,68499.0,5.15]
[1729262557234,9.007829,68500.0,68499.0,5.16787998]
[1729262557465,8.98423415,68500.0,68499.0,1.872507]
[1729262557823,8.96056653,68500.0,68499.0,0.1]
[1729262558271,8.96056653,68500.0,68499.0,4.55]
[1729262558461,8.96066653,68500.0,68499.0,4.56787998]
[1729262558687,8.96066653,68500.0,68499.0,5.6714581]
[1729262558890,8.96066653,68500.0,68499.0,5.65557812]
[1729262559450,8.93008653,68500.0,68499.0,5.65557812]
[1729262559640,8.89878753,68500.0,68499.0,5.6734581]
[1729262559874,8.89878753,68500.0,68499.0,5.6684581]
[1729262560090,8.89878753,68500.0,68499.0,5.64957812]
[1729262560316,8.89878753,68500.0,68499.0,5.65057812]
[1729262560543,8.89878753,68500.0,68499.0,5.64957812]
[1729262561048,8.89878753,68500.0,68499.0,5.64857812]
[1729262561275,8.89878753,68500.0,68499.0,5.64957812]
[1729262561505,8.89878753,68500.0,68499.0,5.65057812]
[1729262561727,8.89878753,68500.0,68499.0,5.64857812]
[1729262561940,8.89878753,68500.0,68499.0,5.64957812]
[1729262562198,8.89888753,68500.0,68499.0,5.65357812]
[1729262562424,8.89888753,68500.0,68499.0,5.65257812]
[1729262562856,8.89888753,68500.0,68499.0,3.42178632]
[1729262563088,8.89888753,68500.0,68499.0,3.42278632]
[1729262563340,8.89888753,68500.0,68499.0,3.42852296]
[1729262563561,8.89888753,68500.0,68499.0,3.42752296]
[1729262563784,8.86789753,68500.0,68499.0,3.42852296]
[1729262564003,8.86789753,68500.0,68499.0,3.42652296]
[1729262564429,8.85594553,68500.0,68499.0,4.52282606]
[1729262564650,8.69761347,68500.0,68499.0,4.67178521]
[1729262564885,8.69111347,68500.0,68499.0,4.79923625]
[1729262565123,8.64543133,68500.0,68499.0,4.79923625]
[1729262565337,8.44378824,68500.0,68499.0,4.86168521]
[1729262565554,8.41236142,68500.0,68499.0,1.55118121]
[1729262565762,8.40806482,68500.0,68499.0,1.54518121]
[1729262566009,8.40346482,68500.0,68499.0,5.99518121]
[1729262566235,7.64093482,68500.0,68499.0,5.99418121]
[1729262566457,7.64093482,68500.0,68499.0,6.02018121]
[1729262566458,7.46595734,68500.0,68499.0,6.02018121]
[1729262566674,7.46595734,68500.0,68499.0,5.82928121]
[1729262566675,6.45987863,68500.0,68499.0,5.82928121]
[1729262566916,6.45987863,68500.0,68499.0,5.88784687]
[1729262566917,6.37780106,68500.0,68499.0,5.88784687]
[1729262567145,6.37780106,68500.0,68499.0,5.87756455]
[1729262567387,6.37780106,68500.0,68499.0,5.87856455]
[1729262567607,6.37780106,68500.0,68499.0,5.79499889]
[1729262567830,6.37780106,68500.0,68499.0,5.79033769]
[1729262568258,6.37780106,68500.0,68499.0,5.70133769]
[1729262568693,6.37780106,68500.0,68499.0,5.70033769]
[1729262569155,6.37780106,68500.0,68499.0,5.55237854]
[1729262569397,6.37780106,68500.0,68499.0,3.97755654]
[1729262569602,6.37780106,68500.0,68499.0,4.07855654]
[1729262569866,6.37780106,68500.0,68499.0,4.07755654]
[1729262570078,6.29021006,68500.0,68499.0,4.07755654]
[1729262570293,6.23181606,68500.0,68499.0,4.33034914]
[1729262570509,6.23181606,68500.0,68499.0,4.32934914]
[1729262570718,6.08583106,68500.0,68499.0,4.33034914]
[1729262571199,6.08583106,68500.0,68499.0,4.2204681]
[1729262571426,6.28023106,68500.0,68499.0,2.41882578]
[1729262571640,6.28023106,68500.0,68499.0,0.151987]
[1729262572111,6.28023106,68500.0,68499.0,0.19371503]
[1729262572350,6.28023106,68500.0,68499.0,0.15195012]
[1729262572578,6.28023106,68500.0,68499.0,0.15095012]
[1729262572818,6.28023106,68500.0,68499.0,2.47325812]
[1729262573060,6.28023106,68500.0,68499.0,3.19484612]
[1729262573271,6.28023106,68500.0,68499.0,3.46759281]
[1729262573503,6.28023106,68500.0,68499.0,2.64152312]
[1729262573773,6.28023106,68500.0,68499.0,2.64252312]
[1729262574228,6.28023106,68500.0,68499.0,2.64152312]
[1729262574651,6.28023106,68500.0,68499.0,2.64056]
[1729262574875,6.28023106,68500.0,68499.0,2.64156]
[1729262575127,6.28023106,68500.0,68499.0,2.68430369]
[1729262575318,6.28023106,68500.0,68499.0,2.64156]
[1729262575765,6.28023106,68500.0,68499.0,2.63956]
[1729262575989,6.28023106,68500.0,68499.0,3.6966891]
[1729262576218,6.28023106,68500.0,68499.0,3.6976891]
[1729262576447,6.28023106,68500.0,68499.0,3.76181353]
[1729262576668,6.28023106,68500.0,68499.0,2.66748243]
[1729262576863,6.28023106,68500.0,68499.0,2.559207]
[1729262577122,6.28023106,68500.0,68499.0,2.62335609]
[1729262577332,6.28023106,68500.0,68499.0,2.300903]
[1729262577581,6.28023106,68500.0,68499.0,0.31615648]
[1729262577807,6.28023106,68500.0,68499.0,0.29376952]
[1729262578041,6.42919021,68500.0,68499.0,0.251987]
[1729262578271,6.42919021,68500.0,68499.0,0.151987]
[1729262578528,6.42919021,68500.0,68489.0,0.08544178]
[1729262578529,6.42919021,68500.0,68493.0,0.21904685]
[1729262578771,0.023,68495.0,68487.0,0.00218893]
[1729262579005,0.023,68493.0,68492.0,0.21904685]
[1729262579305,0.1963,68492.0,68487.0,0.00218893]
[1729262579439,0.0765,68490.0,68487.0,0.00218893]
[1729262579653,0.14895915,68489.0,68487.0,0.00218893]
[1729262580151,0.023,68488.0,68487.0,0.00218893]
[1729262580391,0.43645915,68488.0,68478.0,0.04532]
[1729262580622,0.2875,68488.0,68487.0,0.001]
[1729262580863,0.2645,68488.0,68484.0,0.21904685]
[1729262581072,0.2645,68488.0,68479.0,0.04278252]
[1729262581073,0.2645,68488.0,68482.0,0.04278252]
[1729262581328,0.2645,68488.0,68484.0,0.26282105]
[1729262581537,0.2645,68488.0,68485.0,2.843035]
[1729262581766,0.0701,68498.0,68487.0,0.001]
[1729262582028,0.0701,68498.0,68493.0,0.04283021]
[1729262582242,0.0701,68498.0,68496.0,0.04283021]
[1729262582465,0.0701,68498.0,68497.0,0.0999]
[1729262583110,0.0701,68498.0,68497.0,0.14274178]
[1729262583322,0.0701,68498.0,68497.0,0.0999]
[1729262583551,0.0701,68498.0,68496.0,0.001]
[1729262583780,0.0701,68498.0,68496.0,1.452513]
[1729262584026,0.0701,68498.0,68497.0,2.066541]
[1729262584504,0.0701,68498.0,68497.0,2.25222456]
[1729262584757,0.0701,68498.0,68497.0,0.101]
[1729262585230,6.08583106,68500.0,68498.0,0.1]
[1729262585514,6.08583106,68500.0,68499.0,3.674514]
[1729262585739,6.08583106,68500.0,68499.0,3.67550568]
[1729262585954,6.08583106,68500.0,68499.0,4.01424052]
[1729262586180,6.08583106,68500.0,68499.0,3.82446483]
[1729262587125,6.08583106,68500.0,68499.0,3.82546483]
[1729262587349,6.08583106,68500.0,68499.0,3.92546483]
[1729262587777,6.08583106,68500.0,68499.0,0.25095083]
[1729262587993,6.08583106,68500.0,68499.0,4.70095083]
[1729262588230,6.08583106,68500.0,68499.0,4.70295083]
[1729262588464,6.08583106,68500.0,68499.0,4.73325083]
[1729262588689,6.08583106,68500.0,68499.0,4.75921906]
[1729262589153,6.08583106,68500.0,68499.0,4.76140702]
[1729262589387,6.08583106,68500.0,68499.0,4.76040702]
[1729262589629,6.08583106,68500.0,68499.0,4.73540702]
[1729262589858,6.08583106,68500.0,68499.0,4.72910702]
[1729262590076,6.08583106,68500.0,68499.0,4.72810702]
[1729262590309,6.08583106,68500.0,68499.0,4.72910702]
[1729262590545,6.08593106,68500.0,68499.0,4.72910702]
[1729262591035,6.08593106,68500.0,68499.0,4.75410702]
[1729262591257,6.08593106,68500.0,68499.0,4.77792456]
[1729262591690,6.08593106,68500.0,68499.0,4.75292456]
[1729262592145,6.00388789,68500.0,68499.0,4.75392456]
[1729262592393,6.00388789,68500.0,68499.0,4.72910702]
[1729262592884,6.00388789,68500.0,68499.0,4.75310702]
[1729262593361,6.00388789,68500.0,68499.0,4.75410702]
[1729262593624,6.00388789,68500.0,68499.0,4.75110702]
[1729262594063,6.00388789,68500.0,68499.0,4.75210702]
[1729262594281,6.00388789,68500.0,68499.0,4.72825384]
[1729262594501,6.00388789,68500.0,68499.0,4.70313879]
[1729262595144,6.00388789,68500.0,68499.0,4.84805832]
[1729262595380,5.56632926,68500.0,68499.0,4.70213879]
[1729262595593,5.12877063,68500.0,68499.0,4.70413879]
[1729262595845,5.12877063,68500.0,68499.0,4.60313879]
[1729262596075,5.12877063,68500.0,68499.0,4.60213879]
[1729262596537,5.12877063,68500.0,68499.0,4.60313879]
[1729262596775,5.12877063,68500.0,68499.0,4.60213879]
[1729262596988,5.12877063,68500.0,68499.0,4.60313879]
[1729262597215,5.12877063,68500.0,68499.0,4.08286896]
[1729262597428,5.12877063,68500.0,68499.0,2.57593596]
[1729262598099,5.12877063,68500.0,68499.0,2.72489511]
[1729262598312,5.12877063,68500.0,68499.0,2.75427631]
[1729262598552,5.12877063,68500.0,68499.0,2.85427631]
[1729262598762,5.12877063,68500.0,68499.0,3.04561767]
[1729262598988,5.12877063,68500.0,68499.0,2.85427631]
[1729262599449,5.12877063,68500.0,68499.0,2.85527631]
[1729262599668,5.12877063,68500.0,68499.0,2.85427631]
[1729262599883,5.12877063,68500.0,68499.0,2.85527631]
[1729262600327,5.12877063,68500.0,68499.0,2.85427631]
[1729262600561,5.12877063,68500.0,68499.0,2.85327631]
[1729262600852,5.12877063,68500.0,68499.0,2.85214511]
[1729262601076,5.12877063,68500.0,68499.0,2.57393596]
[1729262601283,5.12877063,68500.0,68499.0,2.72289511]
[1729262601516,5.12877063,68500.0,68499.0,2.75214511]
[1729262601786,5.12877063,68500.0,68499.0,0.17939711]
[1729262602014,5.12877063,68500.0,68499.0,4.60014711]
[1729262602251,5.12877063,68500.0,68499.0,4.70114711]
[1729262602462,5.12877063,68500.0,68499.0,4.72939711]
[1729262602686,5.12877063,68500.0,68499.0,4.73039711]
[1729262603173,5.12877063,68500.0,68499.0,4.72939711]
[1729262603392,5.12877063,68500.0,68499.0,4.92082307]
[1729262603618,5.12877063,68500.0,68499.0,4.73039711]
[1729262603851,5.12877063,68500.0,68499.0,4.72939711]
[1729262604067,5.12877063,68500.0,68499.0,4.73039711]
[1729262605184,5.12877063,68500.0,68499.0,4.92082307]
[1729262605391,5.12877063,68500.0,68499.0,4.73039711]
[1729262605884,5.12877063,68500.0,68499.0,4.90044061]
[1729262606096,5.12877063,68500.0,68499.0,4.7296333]
[1729262606350,5.12877063,68500.0,68499.0,4.45566872]
[1729262606585,5.20437063,68500.0,68499.0,3.25239996]
[1729262606795,5.20437063,68500.0,68499.0,3.30975996]
[1729262607016,5.20437063,68500.0,68499.0,3.31324072]
[1729262607232,5.20437063,68500.0,68499.0,3.31424072]
[1729262607917,5.20437063,68500.0,68499.0,3.41424072]
[1729262608623,5.20437063,68500.0,68499.0,3.41324072]
[1729262608837,5.20437063,68500.0,68499.0,3.41424072]
[1729262609056,5.20437063,68500.0,68499.0,3.41324072]
[1729262609292,5.12877063,68500.0,68499.0,3.56219987]
[1729262609521,5.12877063,68500.0,68499.0,3.56319987]
[1729262609993,5.12877063,68500.0,68499.0,3.41075996]
[1729262610266,5.12877063,68500.0,68499.0,3.41324072]
[1729262610438,5.12807063,68500.0,68499.0,3.41324072]
[1729262610652,5.12807063,68500.0,68499.0,3.41075996]
[1729262611090,5.12807063,68500.0,68499.0,0.94625696]
[1729262611326,5.12807063,68500.0,68499.0,1.07838513]
[1729262611545,5.12807063,68500.0,68499.0,0.88789696]
[1729262611781,5.12807063,68500.0,68499.0,1.98120976]
[1729262612290,5.12807063,68500.0,68499.0,1.98220976]
[1729262612515,5.12807063,68500.0,68499.0,1.98120976]
[1729262612753,5.12807063,68500.0,68499.0,1.98220976]
[1729262613180,5.12807063,68500.0,68499.0,1.98120976]
[1729262613416,5.12807063,68500.0,68499.0,1.98220976]
[1729262613658,5.12807063,68500.0,68499.0,1.98386576]
[1729262615964,5.12807063,68500.0,68499.0,5.64815676]
[1729262616881,5.12807063,68500.0,68499.0,1.42371072]
[1729262618069,5.12807063,68500.0,68499.0,2.51704692]
[1729262618511,5.12807063,68500.0,68499.0,2.51804692]
[1729262618947,5.12807063,68500.0,68499.0,2.51704692]
[1729262619171,5.12807063,68500.0,68499.0,2.89704692]
[1729262619386,5.12807063,68500.0,68499.0,3.04600607]
[1729262619602,5.12807063,68500.0,68499.0,3.2203913]
[1729262619821,5.12807063,68500.0,68499.0,3.07525607]
[1729262620060,5.12807063,68500.0,68499.0,3.07625607]
[1729262621397,5.12807063,68500.0,68499.0,3.07525607]
[1729262621608,5.12807063,68500.0,68499.0,3.07825607]
[1729262621884,5.12807063,68500.0,68499.0,3.07625607]
[1729262626871,5.12807063,68500.0,68499.0,1.76456107]
[1729262627330,5.39237063,68500.0,68499.0,1.80492419]
[1729262627595,5.39237063,68500.0,68499.0,0.68403096]
[1729262627834,5.39237063,68500.0,68499.0,1.77836526]
[1729262628531,5.39237063,68500.0,68499.0,1.39736526]
[1729262628747,5.39237063,68500.0,68499.0,1.87836526]
[1729262628957,5.39237063,68500.0,68499.0,1.87736526]
[1729262629390,5.39237063,68500.0,68499.0,1.87836526]
[1729262629614,5.39237063,68500.0,68499.0,1.87736526]
[1729262630082,5.21097063,68500.0,68499.0,1.87736526]
[1729262630969,5.21097063,68500.0,68499.0,1.87836526]
[1729262632608,5.12807063,68500.0,68499.0,2.03248065]
[1729262632860,5.12807063,68500.0,68499.0,2.26782347]
[1729262633057,5.12807063,68500.0,68499.0,2.26582365]
[1729262633700,5.12807063,68500.0,68499.0,2.26066741]
[1729262633926,5.12807063,68500.0,68499.0,2.02732441]
[1729262634801,5.12807063,68500.0,68499.0,2.02932441]
[1729262635257,5.12807063,68500.0,68499.0,2.02732441]
[1729262635481,5.07986837,68500.0,68499.0,2.02732441]
[1729262635934,5.0677812,68500.0,68499.0,2.02732441]
[1729262636831,5.0677812,68500.0,68499.0,1.88768538]
[1729262637068,5.0677812,68500.0,68499.0,2.03664453]
[1729262637290,5.05611067,68500.0,68499.0,2.04296391]
[1729262637967,5.05611067,68500.0,68499.0,2.18852299]
[1729262638208,5.05611067,68500.0,68499.0,2.04296391]
[1729262640481,5.05330267,68500.0,68499.0,2.04296391]
[1729262640694,5.05260067,68500.0,68499.0,2.04296391]
[1729262641160,5.05260067,68500.0,68499.0,1.87836526]
[1729262641406,5.05260067,68500.0,68499.0,1.8950598]
[1729262641876,5.05260067,68500.0,68499.0,2.04401895]
[1729262645088,5.05260067,68500.0,68499.0,1.8950598]
[1729262647149,5.05260067,68500.0,68499.0,2.04401895]
[1729262648063,5.05270067,68500.0,68499.0,2.04401895]
[1729262649411,5.05270067,68500.0,68499.0,2.04601895]
[1729262649635,5.05016483,68500.0,68499.0,2.07526895]
[1729262649859,5.05016483,68500.0,68499.0,1.77508195]
[1729262650096,5.05016483,68500.0,68499.0,1.77308195]
[1729262650353,5.05016483,68500.0,68499.0,6.24742298]
[1729262650575,5.05016483,68500.0,68499.0,6.21817298]
[1729262650802,5.05016483,68500.0,68499.0,6.20247844]
[1729262651041,5.05016483,68500.0,68499.0,6.43505724]
[1729262651261,5.05016483,68500.0,68499.0,6.43605724]
[1729262651476,5.05016483,68500.0,68499.0,6.43505724]
[1729262652161,5.05016483,68500.0,68499.0,6.43605724]
[1729262652816,5.02865104,68500.0,68499.0,6.23241836]
[1729262653467,5.02865104,68500.0,68499.0,6.26166836]
[1729262656416,5.10795104,68500.0,68499.0,5.34870729]
[1729262656728,5.29945104,68500.0,68499.0,4.24095526]
[1729262657095,5.29945104,68500.0,68499.0,4.38661736]
[1729262657317,5.29945104,68500.0,68499.0,4.38563552]